lending/lending_fUSD_20240401
["ID","MTS","AMOUNT","RATE_DAILY","PERIOD"]
[321218691,1711986656604,-1888.5197696,0.00066554,4]
[321218692,1711986656616,-1857.7999479,0.00066554,4]
[321218693,1711986656626,-1827.0801262,0.00066554,4]
[321218694,1711986656635,-1796.3603045,0.00066554,4]
[321218695,1711986656644,-25779.3836298,0.00066554,4]
[321218696,1711986656722,-406.24944498,0.00066554,4]
[321218697,1711986656734,-715.77068857,0.00066554,4]
[321218698,1711986656753,-662.86499949,0.00049162,2]
[321218699,1711986656765,-523.20825334,0.00049162,2]
[321218700,1711986656776,-255.53674717,0.00049162,2]
[321218701,1711986656786,-12.50699905,0.00066554,4]
[321218702,1711986656797,-7000.0,0.00066554,4]
[321218703,1711986656812,-286.35293546,0.000603,120]
[321218704,1711986656841,-918.91746143,0.000603,120]
[321218705,1711986656851,-2518.66668858,0.00066554,4]
[321218706,1711986656896,-225.78999661,0.00043042,2]
[321218707,1711986656906,-1897.74352959,0.00066554,4]
[321218708,1711986656917,-3132.48135853,0.00066554,4]
[321218709,1711986656926,-6646.98758135,0.00066554,4]
[321218710,1711986656937,-4989.80608,0.00066554,4]
[321218711,1711986657058,-29058.47760855,0.00066554,4]
[321218712,1711986657067,-4758.98815904,0.00066554,4]
[321218713,1711986657078,-35168.75204166,0.00066554,4]
[321218714,1711986657087,-4255.09481904,0.00066554,4]
[321218715,1711986657098,-5917.76994183,0.00066554,4]
[321218716,1711986657110,-996.7948678,0.00066554,4]
[321218717,1711986657121,-545.9134,0.00066554,4]
[321218718,1711986657133,-27444.63610283,0.00066554,4]
[321218719,1711986657142,-38392.6780623,0.00066554,4]
[321218720,1711986657151,-153.91678368,0.00066575,120]
[321218721,1711986657160,-213.08059227,0.00066575,120]
[321218722,1711986657170,-206860.86562279,0.00066594,120]
[321218723,1711986657211,-187.77504436,0.00054594,30]
[321218724,1711986657220,-14760.99716363,0.00066594,120]
[321218725,1711986657232,-6870.8952,0.00066594,120]
[321218726,1711986657243,-3446.9802,0.00066594,120]
[321218727,1711986657254,-68666.00000003,0.00066594,120]
[321218728,1711986657265,-344.31584947,0.00066594,120]
[321218729,1711986657277,-685.1239808,0.00066594,120]
[321218730,1711986657288,-1848.7558415,0.00066594,120]
[321218731,1711986657306,-8636.08305226,0.00066594,120]
[321218732,1711986657389,155.0,0.00037,2]
[321218733,1711986670687,22231.12,0.00025,2]
[321218734,1711986670717,1499.65221425,0.00025,2]
[321218735,1711986670738,2000.0,0.00025,2]
[321218736,1711986670762,2000.0,0.00025,2]
[321218737,1711986670784,2000.0,0.00025,2]
[321218738,1711986670809,25000.0,0.00025,2]
[321218739,1711986670835,2568862.95086122,0.00025,2]
[321218740,1711986716840,23637.14994738,6.94e-05,2]
[321218742,1711986741434,407.33464593,0.0003,2]
[321218743,1711986754873,295.6017746,0.00025,2]
[321218744,1711986774874,295.6017746,0.00025,2]
[321218746,1711986792875,203.23886903,0.00025,2]
[321218749,1711986840835,347089.94835641,0.00025,2]
[321218755,1711986876867,451.50397141,0.00022,2]
[321218757,1711986879971,150.999998,0.00031,2]
[321218758,1711986881062,2542.39353808,0.0002,2]
[321218804,1711987281628,-159.8,0.00033116,2]
[321218805,1711987281653,-2162.2,0.00034427,2]
[321218806,1711987296970,-1042.1543578,0.00034427,2]
[321218807,1711987296998,-5784.68861029,0.00034428,2]
[321218808,1711987297027,-176.19,0.0003443,2]
[321218809,1711987297056,-1569.0,0.00034999,2]
[321218810,1711987297086,-1427.96703191,0.00035,2]
[321218816,1711987307086,-483.95219854,0.00035,2]
[321218835,1711987622764,-169.23210292,0.000363,2]
[321218836,1711987622790,-362.16033192,0.00037,2]
[321218860,1711987734300,-151.08,0.00037808,2]
[321218861,1711987734322,-152.59,0.00037808,2]
[321218862,1711987734342,-400.88948247,0.0003888,2]
[321218863,1711987734362,-499.99,0.0003888,2]
[321218864,1711987734383,-557.55,0.00039521,2]
[321218865,1711987734403,-180.63199744,0.00039665,2]
[321218866,1711987734425,-3017.44680761,0.00039766,2]
[321218867,1711987734447,-150.0,0.00039845,4]
[321218868,1711987734467,-150.0,0.00039845,5]
[321218869,1711987734486,-557.48,0.00039846,2]
[321218870,1711987734508,-2782.34171248,0.00039846,2]
[321218920,1711987768106,-2630.1985,0.00039846,2]
[321218951,1711987787339,-3204.3543578,0.00039294,2]
[321218952,1711987787359,-2157.01978752,0.00039846,2]
[321218953,1711987787378,-7686.18,0.00039846,2]
[321218954,1711987787397,-155.0,0.00039846,120]
[321218955,1711987787417,-1834.64585599,0.00039846,4]
[321218956,1711987787437,-178.90015168,0.00039846,2]
[321218957,1711987787457,-322.46375696,0.00039846,4]
[321218958,1711987787477,-11461.43609005,0.00039847,2]
[321218959,1711987825737,-3000.0,0.00039847,2]
[321218972,1711987833123,-470.10612067,0.00039847,2]
[321218973,1711987833183,-209.14192039,0.00039847,2]
[321218974,1711987833192,-180.63199728,0.00039852,2]
[321218975,1711987833202,-180.63199728,0.00040038,2]
[321218976,1711987833211,-180.63199728,0.00040225,2]
[321218977,1711987833221,-180.63199728,0.00040412,2]
[321218978,1711987833231,-180.63199728,0.00040598,2]
[321218979,1711987833240,-180.63199728,0.00040785,2]
[321218980,1711987833252,-180.63199728,0.00040971,2]
[321218981,1711987833262,-250.0,0.00041017,2]
[321218982,1711987833272,-200.15,0.00041047,120]
[321218983,1711987833282,-159.41,0.0004106,15]
[321218984,1711987833292,-500.0,0.00041068,2]
[321218985,1711987833301,-5022.02,0.00041086,2]
[321218986,1711987833311,-2530.01,0.00041086,2]
[321218987,1711987833527,-940.34,0.00041119,2]
[321218988,1711987833538,-180.63199728,0.00041158,2]
[321218989,1711987833548,-151.87,0.00041253,2]
[321218990,1711987833557,-180.63199728,0.00041345,2]
[321218991,1711987833568,-23900.0,0.00041364,2]
[321218992,1711987833580,-150.0,0.00041384,2]
[321218993,1711987833590,-200.0,0.00041384,2]
[321218994,1711987833600,-168.72,0.00041385,2]
[321218995,1711987833611,-159.57,0.00041398,10]
[321218996,1711987833621,-500.0,0.00041418,2]
[321218997,1711987833633,-889.91,0.00041464,2]
[321218998,1711987833643,-250.0,0.00041469,2]
[321218999,1711987833653,-250.0,0.00041486,112]
[321219000,1711987833662,-180.63199728,0.00041531,2]
[321219001,1711987833673,-1000.0,0.00041548,2]
[321219002,1711987833683,-180.63199728,0.00041718,2]
[321219003,1711987833692,-557.55,0.00041785,2]
[321219004,1711987833704,-402.57,0.00041792,2]
[321219005,1711987833713,-425.24898664,0.0004184,4]
[321219006,1711987833722,-2447.46,0.0004185,2]
[321219007,1711987833732,-268.71040631,0.00041852,2]
[321219008,1711987833741,-268.71040631,0.00041854,2]
[321219009,1711987833752,-268.71040631,0.00041854,2]
[321219010,1711987833762,-268.71040631,0.00041854,2]
[321219011,1711987833773,-268.71040631,0.00041854,2]
[321219012,1711987833782,-268.71040631,0.00041854,2]
[321219013,1711987833792,-451.37601336,0.0004186,4]
[321219014,1711987833801,-1922.44176636,0.0004186,2]
[321219015,1711987833811,-20863.07938988,0.00041861,2]
[321219016,1711987833822,-262.796578,0.00041861,4]
[321219017,1711987833831,-258.71451783,0.00041861,4]
[321219018,1711987833841,-1253.03880451,0.00041861,4]
[321219019,1711987833850,-288.92052142,0.00041861,2]
[321219020,1711987833859,-155.0,0.00041861,4]
[321219021,1711987833869,-287.76692697,0.00041862,4]
[321219022,1711987833878,-4125.6485,0.00041862,4]
[321219023,1711987833888,-27804.9257808,0.00041863,4]
[321219024,1711987833897,-2229.66,0.00041863,2]
[321219025,1711987833906,-180.63199728,0.00041905,2]
[321219026,1711987833915,-268.71040631,0.0004199,2]
[321219027,1711987833925,-6352.78641279,0.00042,30]
[321219028,1711987833934,-268.71040631,0.00042023,2]
[321219029,1711987833944,-180.63199728,0.00042091,2]
[321219030,1711987833953,-180.63199728,0.00042278,2]
[321219031,1711987833962,-268.71040631,0.00042428,2]
[321219032,1711987833972,-180.63199728,0.00042464,2]
[321219033,1711987833982,-180.63199728,0.00042651,2]
[321219034,1711987833991,-170.68,0.00042683,2]
[321219035,1711987834000,-170.86,0.00042683,2]
[321219036,1711987834010,-180.63199728,0.00042838,2]
[321219037,1711987834020,-181.74660482,0.00043,2]
[321219038,1711987834030,-180.63199728,0.00043024,2]
[321219039,1711987834039,-1852.76989271,0.00043032,2]
[321219040,1711987834049,-268.71040631,0.00043077,2]
[321219041,1711987834058,-150.22003547,0.00043094,2]
[321219042,1711987834067,-268.71040631,0.00043131,2]
[321219043,1711987834078,-268.71040631,0.00043131,2]
[321219044,1711987834087,-268.71040631,0.00043131,2]
[321219045,1711987834096,-268.71040631,0.00043131,2]
[321219046,1711987834105,-268.71040631,0.00043131,2]
[321219047,1711987834115,-268.71040631,0.00043131,2]
[321219048,1711987834124,-268.71040631,0.00043131,2]
[321219049,1711987834133,-268.71040631,0.00043131,2]
[321219050,1711987834142,-268.71040631,0.00043131,2]
[321219051,1711987834151,-268.71040631,0.00043131,2]
[321219052,1711987834161,-268.71040631,0.00043131,2]
[321219053,1711987834170,-268.71040631,0.00043131,2]
[321219054,1711987834180,-268.71040631,0.00043131,2]
[321219055,1711987834190,-268.71040631,0.00043131,2]
[321219056,1711987834199,-1773.65027721,0.0004314,15]
[321219057,1711987834209,-597.00959699,0.0004314,120]
[321219058,1711987834219,-3203.10816305,0.0004314,120]
[321219059,1711987834229,-1414.74246817,0.0004314,120]
[321219060,1711987834238,-1236.02162823,0.0004314,4]
[321219061,1711987834248,-486.59744224,0.0004314,120]
[321219062,1711987834258,-202.78692191,0.0004314,120]
[321219063,1711987834267,-7833.0400494,0.0004314,7]
[321219064,1711987834276,-540.94406623,0.0004314,120]
[321219065,1711987834286,-7546.24824218,0.0004314,7]
[321219066,1711987834295,-1032.01658921,0.0004314,120]
[321219067,1711987834304,-11543.79771259,0.0004314,120]
[321219068,1711987834314,-4285.45174998,0.0004314,120]
[321219069,1711987834324,-5193.60450119,0.0004314,120]
[321219070,1711987834333,-7572.57942705,0.0004314,120]
[321219071,1711987834342,-6509.69872152,0.0004314,4]
[321219072,1711987834351,-14441.49389719,0.0004314,4]
[321219073,1711987834361,-2286.0,0.0004314,7]
[321219074,1711987834370,-150.22003547,0.00043153,2]
[321219075,1711987834379,-268.71040631,0.00043177,2]
[321219076,1711987834388,-157.33619366,0.00043187,11]
[321219077,1711987834398,-157.33619366,0.00043187,11]
[321219078,1711987834407,-156.93753586,0.00043187,18]
[321219079,1711987834416,-744.17784679,0.00043211,2]
[321219080,1711987834425,-2303.51053618,0.00043211,15]
[321219081,1711987834435,-150.22003547,0.00043211,2]
[321219082,1711987834444,-180.63199728,0.00043211,2]
[321219083,1711987834453,-438.11268124,0.00043211,2]
[321219084,1711987834463,-268.71040631,0.0004326,2]
[321219085,1711987834473,-268.71040631,0.00043266,2]
[321219086,1711987834482,-268.71040631,0.00043269,2]
[321219087,1711987834647,-268.71040631,0.0004327,2]
[321219088,1711987834664,-268.71040631,0.0004327,2]
[321219089,1711987834674,-150.85,0.0004327,2]
[321219090,1711987834683,-184.063623,0.0004327,2]
[321219091,1711987834693,-207.59050344,0.00043276,4]
[321219092,1711987834704,-2577.65726799,0.00043276,4]
[321219093,1711987834714,-298.41877202,0.00043277,4]
[321219094,1711987834723,-258.24255427,0.00043277,4]
[321219095,1711987834733,-156.04137449,0.00043278,4]
[321219096,1711987834745,-371.52548277,0.00043278,4]
[321219097,1711987834754,-155.0,0.00043279,4]
[321219098,1711987834763,-1015.77749666,0.00043279,60]
[321219099,1711987834773,-1124.57853461,0.00043279,60]
[321219100,1711987834782,-1124.57853461,0.00043279,60]
[321219101,1711987834792,-1124.57853462,0.00043279,60]
[321219102,1711987834801,-359700.67100862,0.0004328,2]
[321219103,1711987834847,-368.96,0.0004328,2]
[321219104,1711987834858,-2274.26238943,0.0004328,2]
[321219105,1711987834869,-3554.46820014,0.0004328,2]
[321219106,1711987834881,-3854.0400004,0.0004328,2]
[321219107,1711987834892,-2498.078602,0.0004328,2]
[321219108,1711987834906,-1325.14524,0.0004328,2]
[321219109,1711987834918,-820.22866801,0.0004328,2]
[321219110,1711987834930,-389.9998,0.0004328,2]
[321219111,1711987834946,-9693.12841882,0.0004328,2]
[321219112,1711987834960,-1875.10744736,0.0004328,2]
[321219113,1711987834973,-3776.80857769,0.0004328,2]
[321219114,1711987834984,-6810.2,0.0004328,2]
[321219115,1711987834995,-1202.02761392,0.0004328,2]
[321219116,1711987835011,-1162.26223792,0.0004328,2]
[321219117,1711987835073,-10255.05,0.0004328,2]
[321219208,1711987838134,-206.0,0.00043279,2]
[321219211,1711987838143,-34050.85,0.0004328,2]
[321219214,1711987838154,-3074.60083,0.0004328,2]
[321219216,1711987838166,-345.50000001,0.0004328,2]
[321219218,1711987838177,-690.37294638,0.0004328,2]
[321219222,1711987838193,-2953.66550588,0.0004328,2]
[321219225,1711987838204,-3951.68816917,0.0004328,2]
[321219228,1711987838215,-445.1411747,0.0004328,2]
[321219232,1711987838226,-13640.0,0.0004328,2]
[321219237,1711987838253,-1047233.20089007,0.0004328,2]
[321219240,1711987838263,-179.19203371,0.00043311,20]
[321219243,1711987838272,-159.41,0.000438,15]
[321219245,1711987838282,-2530.01,0.00043826,2]
[321219247,1711987838291,-300.0,0.0004399,2]
[321219248,1711987838301,-557.55,0.00044049,2]
[321219249,1711987838311,-744.17784677,0.00044883,2]
[321219250,1711987838322,-6200.57883742,0.00045,4]
[321219251,1711987838331,-18623.74241078,0.00045,5]
[321219252,1711987838340,-328.12961356,0.00045,4]
[321219253,1711987838350,-151.87,0.0004544,2]
[321219254,1711987838361,-160.0,0.000456,3]
[321219255,1711987838370,-183.0,0.000456,3]
[321219256,1711987838380,-1852.76989265,0.0004564,2]
[321219257,1711987838389,-557.55,0.00046313,2]
[321219258,1711987838399,-19795.79074951,0.00046459,2]
[321219259,1711987838409,-159.41,0.00046539,15]
[321219260,1711987838418,-744.17784677,0.00046556,2]
[321219261,1711987838428,-2530.01,0.00046566,2]
[321219262,1711987838438,-1000.0,0.00046742,2]
[321219263,1711987838448,-152.59,0.00047726,2]
[321219264,1711987838458,-151.0,0.00048,120]
[321219265,1711987838468,-744.17784677,0.00048228,2]
[321219266,1711987838477,-1852.76989265,0.00048247,2]
[321219267,1711987838486,-150.0,0.00048263,120]
[321219268,1711987838498,-557.55,0.00048577,2]
[321219269,1711987838509,-15940.03811511,0.00049,120]
[321219270,1711987838518,-792.68151401,0.00049161,4]
[321219271,1711987838528,-159.41,0.00049279,15]
[321219272,1711987838537,-1000.0,0.00049315,60]
[321219273,1711987838547,-151.0,0.00049342,120]
[321219274,1711987838556,-151.87,0.00049627,120]
[321219276,1711987838565,-1448.21742819,0.0004968,120]
[321219277,1711987838576,-138284.44476838,0.000498,120]
[321219278,1711987838585,-744.17784677,0.000499,2]
[321219279,1711987838595,-326.80187265,0.000499,2]
[321219280,1711987838604,-174.52600396,0.000499,46]
[321219281,1711987838613,-223.80814434,0.000499,2]
[321219282,1711987838625,-490.36643496,0.000499,2]
[321219283,1711987838635,-4789.19966724,0.000499,2]
[321219285,1711987838644,-461.07273653,0.000499,2]
[321219287,1711987838654,-236.0,0.0004997,15]
[321219289,1711987838663,-150.5,0.0004998,15]
[321219291,1711987838672,-150.5,0.0004999,15]
[321219293,1711987838681,-1481883.37204172,0.0005,36]
[321219295,1711987838690,-999.999999,0.0005,2]
[321219297,1711987838701,-10272.31918757,0.0005,14]
[321219299,1711987838710,-27070.10563861,0.0005,4]
[321219301,1711987838719,-563.46770703,0.0005,15]
[321219303,1711987838728,-116771.09973342,0.0005,120]
[321219305,1711987838737,-1120.06063358,0.0005,2]
[321219307,1711987838747,-816.55751853,0.0005,2]
[321219309,1711987838756,-3882.84832168,0.0005,2]
[321219311,1711987838766,-200.0,0.0005,2]
[321219313,1711987838775,-2654.26202135,0.0005,120]
[321219314,1711987838784,-151.0,0.0005,120]
[321219316,1711987838793,-165.03,0.0005,7]
[321219317,1711987838802,-166.11,0.0005,7]
[321219318,1711987838812,-158.8,0.0005,7]
[321219319,1711987838821,-5000.0,0.0005,7]
[321219320,1711987838831,-1063.23474672,0.00050136,64]
[321219321,1711987838840,-151.0,0.00050685,120]
[321219322,1711987838850,-5817.89736,0.0005074,2]
[321219323,1711987838859,-150.0,0.00050778,120]
[321219324,1711987838868,-13387.47297548,0.000508,120]
[321219325,1711987838878,-557.55,0.00050841,2]
[321219326,1711987838887,-1852.76989265,0.00050855,2]
[321219328,1711987838896,-20570.68775406,0.000509,120]
[321219330,1711987838905,-156.93753585,0.00050958,48]
[321219332,1711987838914,-6088.85567409,0.00051,20]
[321219334,1711987838923,-483.37985299,0.000515,2]
[321219336,1711987838932,-9256.6857607,0.000517,120]
[321219338,1711987838942,-1000.0,0.00051935,120]
[321219340,1711987838951,-5955.00876146,0.00052,3]
[321219342,1711987838960,-1142.33137868,0.00052,120]
[321219344,1711987838969,-10514.65937727,0.00052,2]
[321219346,1711987838978,-159.41,0.00052019,120]
[321219348,1711987838988,-151.0,0.00052027,120]
[321219350,1711987838997,-500.0,0.00052054,60]
[321219352,1711987839006,-150.0,0.00052117,120]
[321219354,1711987839015,-940.34,0.00052352,120]
[321219356,1711987839024,-62878.36179773,0.000528,7]
[321219358,1711987839034,-209.82449997,0.000529,30]
[321219360,1711987839043,-21906.04735066,0.00053,30]
[321219362,1711987839052,-2447.46,0.00053083,120]
[321219364,1711987839062,-557.55,0.00053105,2]
[321219366,1711987839071,-2242.46518319,0.000533,7]
[321219368,1711987839081,-165.03,0.000533,30]
[321219370,1711987839090,-166.11,0.000533,14]
[321219372,1711987839100,-151.0,0.0005337,120]
[321219374,1711987839110,-1852.76989265,0.00053462,2]
[321219376,1711987839119,-387.24623827,0.0005375,30]
[321219378,1711987839129,-151.87,0.00053815,120]
[321219380,1711987839139,-10001.77750184,0.00054,2]
[321219382,1711987839148,-696.31096825,0.00054,30]
[321219384,1711987839157,-151.0,0.00054,120]
[321219387,1711987839167,-174.52600393,0.00054023,52]
[321219388,1711987839176,-1832.28974118,0.00054233,4]
[321219390,1711987839185,-151.08,0.00054338,2]
[321219392,1711987839194,-1068.13511278,0.000545,120]
[321219394,1711987839203,-537.85611466,0.00054584,31]
[321219397,1711987839214,-151.0,0.00054712,120]
[321219399,1711987839223,-159.41,0.00054759,120]
[321219401,1711987839231,-500.0,0.00054794,120]
[321219403,1711987839240,-500.0,0.00054794,120]
[321219405,1711987839250,-505.77416886,0.00054794,120]
[321219407,1711987839258,-500.0,0.00054794,120]
[321219409,1711987839267,-349.36,0.00054794,120]
[321219410,1711987839276,-500.0,0.00054794,120]
[321219412,1711987839285,-500.0,0.00054794,120]
[321219414,1711987839294,-500.0,0.00054794,120]
[321219416,1711987839303,-500.0,0.00054794,120]
[321219418,1711987839312,-279.0,0.00054794,120]
[321219420,1711987839321,-449.72769315,0.00054794,120]
[321219422,1711987839331,-500.0,0.00054794,120]
[321219424,1711987839340,-500.0,0.00054794,120]
[321219426,1711987839349,-500.0,0.00054794,120]
[321219428,1711987839358,-500.0,0.00054794,120]
[321219430,1711987839367,-500.0,0.00054794,120]
[321219432,1711987839375,-500.0,0.00054794,120]
[321219434,1711987839384,-500.0,0.00054794,120]
[321219436,1711987839394,-229.14729119,0.00054794,120]
[321219438,1711987839403,-500.0,0.00054794,120]
[321219440,1711987839412,-511.12936369,0.00054794,120]
[321219442,1711987839422,-208.73937583,0.00054794,120]
[321219444,1711987839431,-500.0,0.00054794,120]
[321219446,1711987839440,-224.08138446,0.00054794,120]
[321219448,1711987839449,-500.0,0.00054794,120]
[321219450,1711987839458,-500.0,0.00054794,120]
[321219452,1711987839467,-185.90520601,0.00054794,120]
[321219454,1711987839476,-500.0,0.00054794,120]
[321219457,1711987839486,-502.32,0.00054794,120]
[321219459,1711987839495,-500.0,0.00054794,120]
[321219461,1711987839504,-500.0,0.00054794,120]
[321219463,1711987839514,-532.77259356,0.00054794,4]
[321219465,1711987839523,-500.0,0.00054794,120]
[321219467,1711987839532,-500.0,0.00054794,120]
[321219469,1711987839541,-500.0,0.00054794,120]
[321219471,1711987839550,-500.0,0.00054794,120]
[321219473,1711987839559,-688.54,0.00054794,120]
[321219475,1711987839569,-500.0,0.00054794,120]
[321219477,1711987839581,-500.0,0.00054794,120]
[321219479,1711987839590,-500.0,0.00054794,120]
[321219483,1711987839599,-611.67,0.00054794,120]
[321219486,1711987839609,-500.0,0.00054794,120]
[321219489,1711987839619,-500.0,0.00054794,120]
[321219491,1711987839631,-500.0,0.00054794,120]
[321219493,1711987839641,-500.0,0.00054794,120]
[321219495,1711987839649,-500.0,0.00054794,120]
[321219497,1711987839659,-811.44,0.00054794,120]
[321219499,1711987839668,-500.0,0.00054794,120]
[321219501,1711987839677,-500.0,0.00054794,120]
[321219503,1711987839686,-500.0,0.00054794,120]
[321219505,1711987839696,-500.0,0.00054794,120]
[321219507,1711987839705,-500.0,0.00054794,120]
[321219510,1711987839715,-514.1,0.00054794,120]
[321219513,1711987839724,-500.0,0.00054794,120]
[321219515,1711987839733,-500.0,0.00054794,120]
[321219518,1711987839742,-500.0,0.00054794,120]
[321219521,1711987839751,-500.0,0.00054794,120]
[321219524,1711987839761,-500.0,0.00054794,120]
[321219527,1711987839770,-500.0,0.00054794,120]
[321219530,1711987839779,-500.0,0.00054794,120]
[321219532,1711987839788,-500.0,0.00054794,120]
[321219535,1711987839798,-500.0,0.00054794,120]
[321219538,1711987839806,-586.06,0.00054794,120]
[321219541,1711987839815,-500.0,0.00054794,120]
[321219544,1711987839824,-500.0,0.00054794,120]
[321219547,1711987839833,-500.0,0.00054794,120]
[321219550,1711987839842,-264.25,0.00054794,120]
[321219553,1711987839851,-500.0,0.00054794,120]
[321219556,1711987839860,-500.0,0.00054794,120]
[321219559,1711987839869,-500.0,0.00054794,120]
[321219562,1711987839878,-500.0,0.00054794,120]
[321219565,1711987839888,-500.0,0.00054794,120]
[321219568,1711987839897,-500.0,0.00054794,120]
[321219571,1711987839906,-500.0,0.00054794,120]
[321219574,1711987839915,-500.0,0.00054794,120]
[321219577,1711987839924,-500.0,0.00054794,7]
[321219579,1711987839934,-1010.61,0.00054794,120]
[321219581,1711987839943,-500.0,0.00054794,120]
[321219583,1711987839951,-170.61984441,0.00054794,21]
[321219585,1711987839961,-500.0,0.00054794,120]
[321219587,1711987839970,-500.0,0.00054794,120]
[321219589,1711987839979,-500.0,0.00054794,120]
[321219591,1711987839988,-606.99,0.00054794,120]
[321219593,1711987839997,-500.0,0.00054794,120]
[321219595,1711987840006,-500.0,0.00054794,120]
[321219597,1711987840016,-500.0,0.00054794,120]
[321219599,1711987840025,-500.0,0.00054794,120]
[321219601,1711987840034,-500.0,0.00054794,120]
[321219603,1711987840043,-500.0,0.00054794,120]
[321219605,1711987840052,-500.0,0.00054794,120]
[321219607,1711987840061,-500.0,0.00054794,120]
[321219609,1711987840071,-500.0,0.00054794,120]
[321219611,1711987840081,-500.0,0.00054794,120]
[321219613,1711987840091,-484.32,0.00054794,120]
[321219615,1711987840100,-592.45,0.00054794,120]
[321219617,1711987840110,-500.0,0.00054794,120]
[321219619,1711987840119,-831.92,0.00054794,120]
[321219621,1711987840128,-500.0,0.00054794,120]
[321219623,1711987840137,-500.0,0.00054794,120]
[321219625,1711987840147,-709.73,0.00054795,2]
[321219627,1711987840156,-1000.0,0.00054795,120]
[321219629,1711987840166,-158.8,0.000548,30]
[321219631,1711987840175,-167.01,0.00054817,2]
[321219633,1711987840184,-12532.75313785,0.00055,120]
[321219635,1711987840194,-1999.999999,0.00055,5]
[321219637,1711987840203,-32808.97245178,0.00055,120]
[321219639,1711987840212,-21199.81618668,0.00055,30]
[321219641,1711987840221,-211381.54257202,0.00055,30]
[321219643,1711987840231,-2343.13530763,0.00055,120]
[321219645,1711987840240,-500.0,0.00055068,120]
[321219647,1711987840250,-500.0,0.00055068,120]
[321219649,1711987840258,-539.25,0.00055068,120]
[321219651,1711987840268,-326.84,0.00055068,120]
[321219653,1711987840277,-500.0,0.00055068,120]
[321219655,1711987840287,-500.0,0.00055068,120]
[321219657,1711987840296,-500.0,0.00055068,120]
[321219659,1711987840305,-500.0,0.00055068,120]
[321219661,1711987840314,-586.74,0.00055068,120]
[321219663,1711987840325,-500.0,0.00055068,120]
[321219665,1711987840334,-500.0,0.00055068,120]
[321219667,1711987840344,-500.0,0.00055068,120]
[321219669,1711987840356,-500.0,0.00055068,120]
[321219671,1711987840366,-688.54,0.00055068,120]
[321219673,1711987840375,-500.0,0.00055068,120]
[321219675,1711987840384,-327.31,0.00055068,120]
[321219677,1711987840394,-500.0,0.00055068,120]
[321219679,1711987840403,-500.0,0.00055068,120]
[321219681,1711987840412,-500.0,0.00055068,120]
[321219683,1711987840422,-811.44,0.00055068,120]
[321219685,1711987840431,-500.0,0.00055068,120]
[321219687,1711987840440,-500.0,0.00055068,120]
[321219689,1711987840449,-514.1,0.00055068,120]
[321219691,1711987840458,-500.0,0.00055068,120]
[321219693,1711987840467,-500.0,0.00055068,120]
[321219695,1711987840476,-500.0,0.00055068,120]
[321219697,1711987840486,-500.0,0.00055068,120]
[321219699,1711987840495,-500.0,0.00055068,120]
[321219701,1711987840504,-642.07,0.00055068,120]
[321219703,1711987840513,-500.0,0.00055068,120]
[321219705,1711987840522,-500.0,0.00055068,120]
[321219707,1711987840531,-586.06,0.00055068,120]
[321219709,1711987840540,-500.0,0.00055068,120]
[321219711,1711987840550,-500.0,0.00055068,120]
[321219713,1711987840559,-500.0,0.00055068,120]
[321219715,1711987840568,-500.0,0.00055068,120]
[321219717,1711987840578,-500.0,0.00055068,120]
[321219719,1711987840587,-190.11,0.00055068,120]
[321219721,1711987840596,-500.0,0.00055068,120]
[321219724,1711987840607,-577.59384607,0.00055068,120]
[321219725,1711987840618,-602.38,0.00055068,7]
[321219727,1711987840634,-1010.61,0.00055068,120]
[321219730,1711987840643,-500.0,0.00055068,120]
[321219731,1711987840652,-500.0,0.00055068,120]